bitfinex/quotes_BTCUSD_20241014
["timestamp","ask_amount","ask_price","bid_price","bid_amount"]
[1728870303905,0.16406117,62793.0,62792.0,0.00147317]
[1728870304158,0.84993746,62793.0,62792.0,0.00147317]
[1728870304377,0.8457637,62793.0,62792.0,0.00147317]
[1728870305001,0.83079869,62793.0,62792.0,0.00147317]
[1728870305426,0.85775216,62793.0,62792.0,0.00147317]
[1728870305637,0.85575216,62793.0,62792.0,0.00147317]
[1728870306062,1.11975216,62793.0,62792.0,0.00147317]
[1728870306275,1.22004182,62793.0,62792.0,0.00147317]
[1728870306719,1.13375216,62793.0,62792.0,0.00147317]
[1728870308899,1.01750725,62793.0,62792.0,0.00147317]
[1728870309175,0.8575073,62793.0,62792.0,0.09617317]
[1728870309659,0.63346249,62793.0,62792.0,0.09617317]
[1728870310134,0.61946249,62793.0,62792.0,0.09617317]
[1728870310882,0.63346249,62793.0,62792.0,0.09617317]
[1728870311117,0.61946249,62793.0,62792.0,0.09617317]
[1728870311372,0.63346249,62793.0,62792.0,0.09617317]
[1728870312145,0.84623258,62793.0,62792.0,0.00147317]
[1728870312382,0.81855383,62793.0,62792.0,0.00147317]
[1728870312639,0.59450902,62793.0,62792.0,0.00147317]
[1728870313400,0.75587873,62793.0,62792.0,0.00147317]
[1728870313663,0.97992354,62793.0,62792.0,0.00147317]
[1728870314422,0.99392354,62793.0,62792.0,0.00147317]
[1728870314907,0.83255383,62793.0,62792.0,0.00147317]
[1728870315137,0.60850902,62793.0,62792.0,0.00147317]
[1728870315619,0.6334611,62793.0,62792.0,0.00147317]
[1728870321155,0.47223709,62793.0,62792.0,0.17037317]
[1728870321669,0.97223709,62793.0,62792.0,0.17037317]
[1728870322412,0.94728501,62793.0,62792.0,0.17037317]
[1728870322886,0.68803201,62793.0,62792.0,0.28285417]
[1728870323096,0.57583945,62793.0,62792.0,0.44210917]
[1728870323309,0.528,62793.0,62792.0,0.45286974]
[1728870324037,0.514,62793.0,62792.0,0.45286974]
[1728870324285,0.514,62793.0,62792.0,0.34058057]
[1728870324286,0.51793731,62793.0,62792.0,0.34058057]
[1728870324718,0.52793731,62793.0,62792.0,0.34058057]
[1728870325169,0.51793731,62793.0,62792.0,0.34058057]
[1728870325586,0.52393731,62793.0,62792.0,0.34058057]
[1728870327114,0.02393731,62793.0,62792.0,0.34058057]
[1728870327544,0.02391614,62793.0,62792.0,0.34058057]
[1728870327775,0.18316914,62793.0,62792.0,0.08753374]
[1728870327998,0.34439315,62793.0,62792.0,0.00147317]
[1728870328224,0.37731646,62793.0,62792.0,0.00147317]
[1728870328473,0.32947701,62793.0,62792.0,0.00147317]
[1728870328717,0.39523851,62793.0,62792.0,0.001665]
[1728870328926,0.37123806,62793.0,62792.0,0.001665]
[1728870329135,0.38123806,62793.0,62792.0,0.001665]
[1728870329567,0.39605806,62793.0,62792.0,0.001665]
[1728870330262,0.34829701,62793.0,62792.0,0.001665]
[1728870330679,0.33529701,62793.0,62792.0,0.001665]
[1728870330884,0.34929701,62793.0,62792.0,0.001665]
[1728870331721,0.39705806,62793.0,62792.0,0.001665]
[1728870332131,0.34929701,62793.0,62792.0,0.001665]
[1728870335411,0.37424721,62793.0,62792.0,0.001665]
[1728870336258,0.2130232,62793.0,62792.0,0.001665]
[1728870336491,0.0537702,62793.0,62792.0,0.001665]
[1728870336721,0.0537702,62793.0,62792.0,0.17522113]
[1728870336931,0.0537702,62793.0,62792.0,0.001665]
[1728870337135,0.0537702,62793.0,62792.0,0.01596514]
[1728870337353,0.06869407,62793.0,62792.0,0.01596514]
[1728870338402,0.22794707,62793.0,62792.0,0.01596514]
[1728870339512,0.0537702,62793.0,62792.0,0.01596514]
[1728870339719,0.06869585,62793.0,62792.0,0.01596514]
[1728870339925,0.22794885,62793.0,62792.0,0.01596514]
[1728870340370,0.0537702,62793.0,62792.0,0.01596514]
[1728870340589,0.2130232,62793.0,62792.0,0.01596514]
[1728870342111,0.0537702,62793.0,62792.0,0.01596514]
[1728870342322,0.02882,62793.0,62792.0,0.01596514]
[1728870342530,0.188073,62793.0,62792.0,0.01596514]
[1728870343195,0.02882,62793.0,62792.0,0.09856514]
[1728870343417,0.02882,62793.0,62792.0,0.19246514]
[1728870343633,0.188073,62793.0,62792.0,0.19246514]
[1728870343850,0.188073,62793.0,62792.0,0.09856514]
[1728870344286,0.174073,62793.0,62792.0,0.09856514]
[1728870344712,0.188073,62793.0,62792.0,0.09856514]
[1728870344936,0.02882,62793.0,62792.0,0.35490497]
[1728870345155,0.02882,62793.0,62792.0,0.35172014]
[1728870345415,0.04374663,62793.0,62792.0,0.35172014]
[1728870345872,0.02974663,62793.0,62792.0,0.35172014]
[1728870346082,0.02874663,62793.0,62792.0,0.35172014]
[1728870346543,0.03874663,62793.0,62792.0,0.35172014]
[1728870346764,0.02574663,62793.0,62792.0,0.35172014]
[1728870347000,0.02074663,62793.0,62792.0,0.35172014]
[1728870347715,0.02074663,62793.0,62792.0,0.35672014]
[1728870348014,0.02874663,62793.0,62792.0,0.52358259]
[1728870348284,0.02374663,62793.0,62792.0,0.52358259]
[1728870349493,0.00882,62793.0,62792.0,0.52358259]
[1728870349746,0.00882,62793.0,62792.0,0.6848066]
[1728870349985,0.01482,62793.0,62792.0,0.6848066]
[1728870350225,0.01482,62793.0,62792.0,0.7167466]
[1728870350226,0.00882,62793.0,62792.0,0.7167466]
[1728870350474,0.0237496,62793.0,62792.0,0.7167466]
[1728870350724,0.0287496,62793.0,62792.0,0.7167466]
[1728870350983,0.0207496,62793.0,62792.0,0.7167466]
[1728870351486,0.0157496,62793.0,62792.0,0.7167466]
[1728870352458,0.0157496,62793.0,62792.0,0.7187466]
[1728870353451,0.0167496,62793.0,62792.0,0.7217466]
[1728870354413,0.00182,62793.0,62792.0,0.7217466]
[1728870354643,0.01674488,62793.0,62792.0,0.7217466]
[1728870355059,0.01674488,62793.0,62792.0,0.73738444]
[1728870356355,0.00182,62793.0,62792.0,0.73738444]
[1728870357252,0.01674118,62793.0,62792.0,0.73738444]
[1728870358137,0.00182,62793.0,62792.0,0.73738444]
[1728870358375,0.01674003,62793.0,62792.0,0.73738444]
[1728870358797,0.00182,62793.0,62792.0,0.73738444]
[1728870361312,0.01674071,62793.0,62792.0,0.73738444]
[1728870362149,0.016741,62793.0,62792.0,0.73738444]
[1728870362356,0.00182,62793.0,62792.0,0.73738444]
[1728870363012,0.01674077,62793.0,62792.0,0.73738444]
[1728870364466,0.01674233,62793.0,62792.0,0.73738444]
[1728870365341,0.00182,62793.0,62792.0,0.73738444]
[1728870366197,0.00182,62793.0,62792.0,0.73938444]
[1728870366539,0.00182,62793.0,62792.0,0.73738444]
[1728870367803,0.00182,62793.0,62792.0,0.68288793]
[1728870370708,0.00182,62793.0,62792.0,0.68488793]
[1728870371490,0.00182,62793.0,62792.0,0.68288793]
[1728870374158,0.00182,62793.0,62792.0,0.57052199]
[1728870374369,0.01676051,62793.0,62792.0,0.57052199]
[1728870376838,0.01676051,62793.0,62792.0,0.68288793]
[1728870380482,0.01676051,62793.0,62792.0,0.57052199]
[1728870383380,0.01677027,62793.0,62792.0,0.57052199]
[1728870383787,0.00182,62793.0,62792.0,0.57052199]
[1728870383992,0.01677049,62793.0,62792.0,0.57052199]
[1728870384205,0.01677066,62793.0,62792.0,0.57052199]
[1728870388718,0.01677066,62793.0,62792.0,0.57252199]
[1728870388949,0.01677066,62793.0,62792.0,0.62002872]
[1728870389187,0.01677066,62793.0,62792.0,0.57252199]
[1728870389409,0.00182,62793.0,62792.0,0.57252199]
[1728870389644,0.01677111,62793.0,62792.0,0.57252199]
[1728870389887,0.01677111,62793.0,62792.0,0.57052199]
[1728870390839,0.01677099,62793.0,62792.0,0.57052199]
[1728870391299,0.01677099,62793.0,62792.0,0.64178209]
[1728870391967,0.01677099,62793.0,62792.0,0.57052199]
[1728870392168,0.01677119,62793.0,62792.0,0.64178209]
[1728870392395,0.01677119,62793.0,62792.0,0.81762831]
[1728870393223,0.01677119,62793.0,62792.0,0.64178209]
[1728870393483,0.01677119,62793.0,62792.0,0.81764421]
[1728870394524,0.00182,62793.0,62792.0,0.81764421]
[1728870394763,0.0167723,62793.0,62792.0,0.81964421]
[1728870394991,0.0167723,62793.0,62792.0,0.81764421]
[1728870395460,0.0167723,62793.0,62792.0,0.81964421]
[1728870396127,0.0157723,62793.0,62792.0,0.74538411]
[1728870396348,0.0157723,62793.0,62792.0,0.84139758]
[1728870396787,0.0157723,62793.0,62792.0,0.83939758]
[1728870397221,0.0157723,62793.0,62792.0,0.83969918]
[1728870397658,0.0157723,62793.0,62792.0,0.83869918]
[1728870397885,0.0157723,62793.0,62792.0,0.84069918]
[1728870398122,0.0167723,62793.0,62792.0,0.74840562]
[1728870398354,0.0167723,62793.0,62792.0,0.84369918]
[1728870398831,0.0167723,62793.0,62792.0,0.74840562]
[1728870399736,0.0167723,62793.0,62792.0,0.84369918]
[1728870399936,0.0167723,62793.0,62792.0,0.84169918]
[1728870400957,0.0167723,62793.0,62792.0,0.74640562]
[1728870401439,0.0167723,62793.0,62792.0,0.84169918]
[1728870402041,0.0167723,62793.0,62792.0,0.8416486]
[1728870402713,0.0167723,62793.0,62792.0,0.74637281]
[1728870403612,0.0167723,62793.0,62792.0,0.8416486]
[1728870403852,0.0167723,62793.0,62792.0,0.8396486]
[1728870404078,0.0167723,62793.0,62792.0,0.74337281]
[1728870404538,0.0177723,62793.0,62792.0,0.75237281]
[1728870404756,0.0177723,62793.0,62792.0,0.8476486]
[1728870406168,0.00182,62793.0,62792.0,0.8456486]
[1728870406322,0.01677146,62793.0,62792.0,0.8456486]
[1728870406566,0.01777146,62793.0,62792.0,0.8506486]
[1728870407327,0.01777146,62793.0,62792.0,0.7567486]
[1728870407534,0.01777146,62793.0,62792.0,0.77383875]
[1728870407747,0.01777146,62793.0,62792.0,0.86911454]
[1728870407967,0.01777146,62793.0,62792.0,0.56323497]
[1728870408176,0.01777146,62793.0,62792.0,0.63476207]
[1728870408384,0.01777146,62793.0,62792.0,0.4588598]
[1728870409071,0.01777146,62793.0,62792.0,0.43503911]
[1728870409299,0.01777146,62793.0,62792.0,0.43504028]
[1728870409506,0.01777146,62793.0,62792.0,0.45886835]
[1728870409867,0.01777146,62793.0,62792.0,0.43504043]
[1728870410266,0.01777146,62793.0,62792.0,0.40310043]
[1728870410470,0.01777146,62793.0,62792.0,0.43504301]
[1728870410875,0.01777146,62793.0,62792.0,0.077624]
[1728870411128,0.35042446,62793.0,62792.0,0.02977331]
[1728870411326,0.37537094,62793.0,62792.0,0.02977331]
[1728870411743,0.37537094,62793.0,62792.0,0.006665]
[1728870411744,0.37437094,62793.0,62792.0,0.006665]
[1728870411919,0.37437094,62793.0,62792.0,0.00647317]
[1728870412336,0.37337094,62793.0,62792.0,0.00347317]
[1728870412531,0.34842446,62793.0,62792.0,0.00147317]
[1728870412736,0.35642446,62793.0,62792.0,0.00147317]
[1728870412942,0.35642446,62793.0,62792.0,0.001665]
[1728870413136,0.34842446,62793.0,62792.0,0.001665]
[1728870413490,0.343473,62793.0,62792.0,0.001665]
[1728870413726,0.36540849,62793.0,62792.0,0.002665]
[1728870420928,0.3653879,62793.0,62792.0,0.002665]
[1728870421345,0.3653879,62793.0,62792.0,0.02660428]
[1728870421596,0.3653879,62793.0,62792.0,0.002665]
[1728870421809,0.350473,62793.0,62792.0,0.02660428]
[1728870422030,0.350473,62793.0,62792.0,0.002665]
[1728870422275,0.350473,62793.0,62792.0,0.02660428]
[1728870422514,0.350473,62793.0,62792.0,0.002665]
[1728870422942,0.36538553,62793.0,62792.0,0.002665]
[1728870423876,0.36538474,62793.0,62792.0,0.002665]
[1728870425534,0.39033291,62793.0,62792.0,0.002665]
[1728870426914,0.37542117,62793.0,62792.0,0.002665]
[1728870429060,0.39033323,62793.0,62792.0,0.002665]
[1728870432606,0.36538506,62793.0,62792.0,0.002665]
[1728870433344,0.76433263,62793.0,62792.0,0.00247317]
[1728870433575,0.62660907,62793.0,62792.0,0.00247317]
[1728870434239,0.61960907,62793.0,62792.0,0.00147317]
[1728870434468,0.62360907,62793.0,62792.0,0.00247317]
[1728870434703,0.63760907,62793.0,62792.0,0.00247317]
[1728870434910,0.53760907,62793.0,62792.0,0.00247317]
[1728870435129,0.86042057,62793.0,62792.0,0.00247317]
[1728870435349,1.04910152,62793.0,62792.0,0.00247317]
[1728870435559,1.03088582,62793.0,62792.0,0.00247317]
[1728870435769,0.95930713,62793.0,62792.0,0.00247317]
[1728870435978,1.20930713,62793.0,62792.0,0.00247317]
[1728870436186,1.28086178,62793.0,62792.0,0.00247317]
[1728870436394,1.28286178,62793.0,62792.0,0.00247317]
[1728870437051,0.56982894,62789.0,62788.0,0.00164]
[1728870437268,0.82589345,62789.0,62788.0,0.00164]
[1728870437481,0.84081647,62789.0,62788.0,0.00164]
[1728870437907,0.82589345,62789.0,62788.0,0.00164]
[1728870438374,0.83989345,62789.0,62788.0,0.00164]
[1728870438809,0.88757437,62789.0,62788.0,0.00164]
[1728870439026,1.16624324,62789.0,62788.0,0.00164]
[1728870439286,1.10962269,62789.0,62788.0,0.00164]
[1728870439490,1.11162094,62789.0,62788.0,0.00164]
[1728870439703,1.10962094,62789.0,62788.0,0.00164]
[1728870440118,1.12362094,62789.0,62788.0,0.00164]
[1728870440327,1.17128109,62789.0,62788.0,0.00164]
[1728870441487,1.15728109,62789.0,62788.0,0.00164]
[1728870441909,1.17128109,62789.0,62788.0,0.00164]
[1728870442338,1.12362094,62789.0,62788.0,0.00164]
[1728870442968,1.12361422,62789.0,62788.0,0.00164]
[1728870443382,1.12361226,62789.0,62788.0,0.00164]
[1728870444920,0.9164037,62789.0,62788.0,0.00164]
[1728870445123,0.90149518,62789.0,62788.0,0.00164]
[1728870445535,0.92644794,62789.0,62788.0,0.00164]
[1728870445945,0.92163977,62789.0,62788.0,0.00164]
[1728870446154,0.92644794,62789.0,62788.0,0.00164]
[1728870446380,0.94135576,62789.0,62788.0,0.00164]
[1728870446875,0.92644794,62789.0,62788.0,0.00164]
[1728870447732,0.89863977,62789.0,62788.0,0.00164]
[1728870448191,1.37063977,62789.0,62788.0,0.00164]
[1728870448395,1.38463977,62789.0,62788.0,0.00164]
[1728870448614,1.39863977,62789.0,62788.0,0.00164]
[1728870449071,1.67237542,62789.0,62788.0,0.00164]
[1728870449291,1.31733977,62789.0,62788.0,0.00164]
[1728870449519,1.42970571,62789.0,62788.0,0.00164]
[1728870449960,1.19460881,62789.0,62788.0,0.00164]
[1728870451443,1.16660881,62789.0,62788.0,0.00164]
[1728870451653,1.19460881,62789.0,62788.0,0.00164]
[1728870451859,1.19461067,62789.0,62788.0,0.00164]
[1728870452061,1.18061067,62789.0,62788.0,0.00164]
[1728870452472,1.15565791,62789.0,62788.0,0.00164]
[1728870453501,1.16965791,62789.0,62788.0,0.00164]
[1728870455410,1.19460989,62789.0,62788.0,0.00164]
[1728870455820,1.19461635,62789.0,62788.0,0.00164]
[1728870457382,0.8271264,62789.0,62788.0,0.00164]
[1728870457600,0.5678634,62789.0,62788.0,0.16109783]
[1728870458028,0.55295198,62789.0,62788.0,0.1852553]
[1728870458662,0.53895198,62789.0,62788.0,0.1852553]
[1728870458867,0.54195198,62789.0,62788.0,0.1852553]
[1728870459339,0.53895198,62789.0,62788.0,0.1852553]
[1728870459671,0.52495198,62789.0,62788.0,0.1852553]
[1728870459771,0.53595198,62789.0,62788.0,0.0259893]
[1728870460015,0.53595198,62789.0,62788.0,0.1852553]
[1728870460543,0.52495198,62789.0,62788.0,0.1852553]
[1728870460772,0.52695198,62789.0,62788.0,0.1852553]
[1728870461282,0.52495198,62789.0,62788.0,0.1852553]
[1728870461549,0.02995198,62789.0,62788.0,0.1852553]
[1728870461789,0.02895198,62789.0,62788.0,0.1852553]
[1728870462035,0.02995198,62789.0,62788.0,0.1852553]
[1728870462518,0.005,62789.0,62788.0,0.1852553]
[1728870462960,0.005,62789.0,62780.0,0.0777]
[1728870463177,0.005,62789.0,62772.0,0.427435]
[1728870463178,0.16520584,62788.0,62775.0,0.318597]
[1728870463425,0.159282,62782.0,62778.0,0.00318545]
[1728870463637,0.159283,62782.0,62776.0,0.159296]
[1728870463860,0.159283,62782.0,62775.0,0.159297]
[1728870464106,0.159284,62781.0,62774.0,0.0777]
[1728870464327,0.318556,62784.0,62774.0,0.0777]
[1728870464541,0.318556,62784.0,62775.0,0.16248349]
[1728870464757,0.159284,62781.0,62775.0,0.16248349]
[1728870465220,0.159284,62781.0,62775.0,0.00318549]
[1728870465434,0.02495121,62780.0,62775.0,0.00318549]
[1728870466334,0.18423721,62780.0,62775.0,0.00318549]
[1728870466760,0.18423721,62780.0,62778.0,0.00164]
[1728870467211,0.19123721,62780.0,62778.0,0.00164]
[1728870467659,0.18423721,62780.0,62778.0,0.00164]
[1728870468135,0.19923721,62780.0,62778.0,0.00164]
[1728870468856,0.159288,62779.0,62778.0,0.00164]
[1728870469097,0.17421383,62779.0,62778.0,0.00164]
[1728870469335,0.01492583,62779.0,62778.0,0.00164]
[1728870470087,0.02292583,62779.0,62778.0,0.00164]
[1728870470546,0.01492583,62779.0,62778.0,0.02176224]
[1728870470779,0.01992583,62779.0,62778.0,0.00164]
[1728870471018,0.02692583,62779.0,62778.0,0.02176224]
[1728870471259,0.02692583,62779.0,62778.0,0.00164]
[1728870471494,0.03092583,62779.0,62778.0,0.00164]
[1728870471733,0.03092583,62779.0,62778.0,0.02176497]
[1728870472224,0.016,62779.0,62778.0,0.02176497]
[1728870475417,0.03093336,62779.0,62778.0,0.02176497]
[1728870476583,0.19022136,62779.0,62778.0,0.02176497]
[1728870477269,0.175288,62779.0,62778.0,0.02176497]
[1728870478256,0.1902252,62779.0,62778.0,0.02176497]
[1728870478502,0.03074505,62779.0,62778.0,0.02176497]
[1728870478747,0.19003305,62779.0,62778.0,0.02176497]
[1728870480138,0.17509585,62779.0,62778.0,0.02176497]
[1728870480830,0.35100173,62779.0,62778.0,0.02176497]
[1728870481044,0.6056436,62779.0,62778.0,0.02176497]
[1728870481308,0.6056436,62779.0,62778.0,0.00164]
[1728870481571,0.5986436,62779.0,62778.0,0.00164]
[1728870481831,0.58983575,62779.0,62778.0,0.00164]
[1728870482070,0.56242982,62779.0,62778.0,0.00164]
[1728870482541,0.54842982,62779.0,62778.0,0.00164]
[1728870482803,0.75264763,62779.0,62778.0,0.00164]
[1728870483058,0.80037747,62779.0,62778.0,0.00164]
[1728870483317,0.72564763,62779.0,62778.0,0.00164]
[1728870483581,0.73864763,62779.0,62778.0,0.00164]
[1728870484595,0.73964763,62779.0,62778.0,0.00164]
[1728870484826,0.75164763,62779.0,62778.0,0.00164]
[1728870485243,0.73764763,62779.0,62778.0,0.00164]
[1728870485559,0.66408386,62779.0,62778.0,0.00164]
[1728870485810,0.77660167,62779.0,62778.0,0.00164]
[1728870486484,0.76460167,62779.0,62778.0,0.00164]
[1728870486667,0.77860167,62779.0,62778.0,0.00164]
[1728870486906,1.18997138,62779.0,62778.0,0.00164]
[1728870487132,1.26164387,62779.0,62778.0,0.00164]
[1728870487574,1.02860167,62779.0,62778.0,0.00164]
[1728870489065,1.10025437,62779.0,62778.0,0.00164]
[1728870489293,1.02860167,62779.0,62778.0,0.00164]
[1728870490390,1.22325437,62779.0,62778.0,0.00164]
[1728870491681,1.22407437,62779.0,62778.0,0.00164]
[1728870491894,1.15242167,62779.0,62778.0,0.00164]
[1728870492112,1.22407437,62779.0,62778.0,0.00164]
[1728870492324,1.15242167,62779.0,62778.0,0.00164]
[1728870492534,1.12746763,62779.0,62778.0,0.00164]
[1728870492768,1.19912033,62779.0,62778.0,0.00164]
[1728870493179,1.12746763,62779.0,62778.0,0.00164]
[1728870493636,1.15582276,62779.0,62778.0,0.00164]
[1728870493860,1.22747546,62779.0,62778.0,0.00164]
[1728870494322,1.12746763,62779.0,62778.0,0.00164]
[1728870494531,1.19912033,62779.0,62778.0,0.00164]
[1728870495203,1.12746763,62779.0,62778.0,0.00164]
[1728870495644,1.15242463,62779.0,62778.0,0.00164]
[1728870496077,1.08764652,62779.0,62778.0,0.00164]
[1728870496284,1.20016433,62779.0,62778.0,0.00164]
[1728870496515,1.08764652,62779.0,62778.0,0.00164]
[1728870496949,0.80964652,62779.0,62778.0,0.00164]
[1728870497400,0.99901623,62779.0,62778.0,0.00164]
[1728870498728,0.95127653,62779.0,62778.0,0.00164]
[1728870499513,0.93727653,62779.0,62778.0,0.00164]
[1728870499725,0.92327653,62779.0,62778.0,0.00164]
[1728870499934,0.93727653,62779.0,62778.0,0.00164]
[1728870500084,0.95127653,62779.0,62778.0,0.00164]
[1728870500307,1.06379434,62779.0,62778.0,0.00164]
[1728870500533,1.11152456,62779.0,62778.0,0.00164]
[1728870500953,1.36152456,62779.0,62778.0,0.00164]
[1728870501165,1.34752456,62779.0,62778.0,0.00164]
[1728870501605,1.36152456,62779.0,62778.0,0.00164]
[1728870502053,1.34752456,62779.0,62778.0,0.00164]
[1728870502272,1.36245461,62779.0,62778.0,0.00164]
[1728870502518,1.37645461,62779.0,62778.0,0.00164]
[1728870502767,1.15141899,62779.0,62778.0,0.00164]
[1728870502999,1.32872439,62779.0,62778.0,0.00164]
[1728870504127,1.87645461,62779.0,62778.0,0.00164]
[1728870505025,1.52987987,62779.0,62778.0,0.00164]
[1728870505250,1.6901279,62779.0,62778.0,0.00164]
[1728870505740,1.52987987,62779.0,62778.0,0.00164]
[1728870505974,1.64239768,62779.0,62778.0,0.00164]
[1728870506210,1.69013764,62779.0,62778.0,0.00164]
[1728870507110,1.57761983,62779.0,62778.0,0.00164]
[1728870507327,1.52988961,62779.0,62778.0,0.00164]
[1728870507554,1.64240742,62779.0,62778.0,0.00164]
[1728870507788,1.642412,62779.0,62778.0,0.00164]
[1728870508018,1.66736879,62779.0,62778.0,0.00164]
[1728870508459,1.73899179,62779.0,62778.0,0.00164]
[1728870508675,1.9003615,62779.0,62778.0,0.00164]
[1728870510163,1.8287385,62779.0,62778.0,0.00164]
[1728870511081,1.55485098,62779.0,62778.0,0.00164]
[1728870511301,1.73902193,62779.0,62778.0,0.00164]
[1728870511530,1.66736879,62779.0,62778.0,0.00164]
[1728870512433,1.642412,62779.0,62778.0,0.00164]
[1728870512651,1.52989419,62779.0,62778.0,0.00164]
[1728870513100,1.62543939,62779.0,62778.0,0.00164]
[1728870513343,1.52989419,62779.0,62778.0,0.00164]
[1728870514034,1.642412,62779.0,62778.0,0.00164]
[1728870514275,1.7379572,62779.0,62778.0,0.00164]
[1728870514740,1.78010728,62779.0,62778.0,0.00164]
[1728870514969,1.41758947,62779.0,62778.0,0.00164]
[1728870515434,1.44254605,62779.0,62778.0,0.00164]
[1728870517967,1.40039597,62779.0,62778.0,0.00164]
[1728870518209,1.30485077,62779.0,62778.0,0.00164]
[1728870518440,1.40044151,62779.0,62778.0,0.00164]
[1728870518878,1.30485077,62779.0,62778.0,0.00164]
[1728870519113,1.30487424,62779.0,62778.0,0.00164]
[1728870519356,1.46624395,62779.0,62778.0,0.00164]
[1728870519581,1.30487424,62779.0,62778.0,0.00164]
[1728870520772,1.53682355,62779.0,62778.0,0.00164]
[1728870521040,1.46694698,62779.0,62778.0,0.00164]
[1728870521313,1.46894698,62779.0,62778.0,0.00164]
[1728870521564,1.58376176,62779.0,62778.0,0.00164]
[1728870521820,1.83376176,62779.0,62778.0,0.00164]
[1728870522319,1.80880518,62779.0,62778.0,0.00164]
[1728870522550,1.90932299,62779.0,62778.0,0.00164]
[1728870522788,0.460404,62773.0,62772.0,0.00164]
[1728870523033,0.85962707,62773.0,62772.0,0.00164]
[1728870523276,0.86162707,62773.0,62772.0,0.00164]
[1728870523972,1.25510503,62773.0,62772.0,0.00164]
[1728870525402,1.29406471,62773.0,62772.0,0.00164]
[1728870525638,1.46943442,62773.0,62772.0,0.00164]
[1728870526133,1.32595646,62773.0,62772.0,0.00164]
[1728870526808,1.32395646,62773.0,62772.0,0.00164]
[1728870527039,1.30899302,62773.0,62772.0,0.00164]
[1728870527277,1.09889534,62773.0,62772.0,0.00164]
[1728870527501,1.32393096,62773.0,62772.0,0.00164]
[1728870528426,1.21141315,62773.0,62772.0,0.00164]
[1728870528649,1.13611315,62773.0,62772.0,0.00164]
[1728870528936,0.85594344,62773.0,62772.0,0.00164]
[1728870530304,0.87894344,62773.0,62772.0,0.00164]
[1728870530544,0.8640055,62773.0,62772.0,0.00164]
[1728870530791,0.86493566,62773.0,62772.0,0.00164]
[1728870531019,0.8649357,62773.0,62772.0,0.00164]
[1728870531268,1.14578148,62773.0,62772.0,0.00164]
[1728870531507,1.02630541,62773.0,62772.0,0.00164]
[1728870531746,1.01230541,62773.0,62772.0,0.00164]
[1728870532004,0.76230541,62773.0,62772.0,0.00164]
[1728870532234,0.77630541,62773.0,62772.0,0.00164]
[1728870532467,0.88482183,62773.0,62772.0,0.00164]
[1728870532922,0.87082183,62773.0,62772.0,0.00164]
[1728870533147,0.76534573,62773.0,62772.0,0.00164]
[1728870533858,0.60397602,62773.0,62772.0,0.00164]
[1728870534823,0.58097602,62773.0,62772.0,0.00164]
[1728870535492,0.59100487,62773.0,62772.0,0.00164]
[1728870536158,1.09100487,62773.0,62772.0,0.00164]
[1728870536769,1.11400487,62773.0,62772.0,0.00164]
[1728870537000,1.11340487,62773.0,62772.0,0.00164]
[1728870537223,1.11320487,62773.0,62772.0,0.00164]
[1728870537681,1.11290487,62773.0,62772.0,0.00164]
[1728870537922,1.11230487,62773.0,62772.0,0.00164]
[1728870538153,1.11220487,62773.0,62772.0,0.00164]
[1728870538383,1.11210487,62773.0,62772.0,0.00164]
[1728870538606,1.11190487,62773.0,62772.0,0.00164]
[1728870538834,1.11120487,62773.0,62772.0,0.00164]
[1728870539535,1.11080487,62773.0,62772.0,0.00164]
[1728870539778,1.11020487,62773.0,62772.0,0.00164]
[1728870540011,1.09620487,62773.0,62772.0,0.00164]
[1728870540278,1.09600487,62773.0,62772.0,0.00164]
[1728870540510,1.10930487,62773.0,62772.0,0.00164]
[1728870540753,1.09520487,62773.0,62772.0,0.00164]
[1728870541233,1.10900487,62773.0,62772.0,0.00164]
[1728870542522,1.08404582,62773.0,62772.0,0.00164]
[1728870544414,1.20350648,62773.0,62772.0,0.00164]
[1728870545068,1.33404582,62773.0,62772.0,0.00164]
[1728870545535,1.35900497,62773.0,62772.0,0.00164]
[1728870545751,1.47274455,62773.0,62772.0,0.00164]
[1728870545967,1.22274455,62773.0,62772.0,0.00164]
[1728870546627,1.20780497,62773.0,62772.0,0.00164]
[1728870547052,1.45780497,62773.0,62772.0,0.00164]
[1728870548615,1.61917468,62773.0,62772.0,0.00164]
[1728870548849,1.87705634,62773.0,62772.0,0.00164]
[1728870549078,1.88205634,62773.0,62772.0,0.00164]
[1728870549329,1.81649249,62773.0,62772.0,0.00164]
[1728870550861,1.81449249,62773.0,62772.0,0.00164]
[1728870551659,1.81649249,62773.0,62772.0,0.00164]
[1728870551928,1.81531249,62773.0,62772.0,0.00164]
[1728870552301,1.79035334,62773.0,62772.0,0.00164]
[1728870552548,1.51646582,62773.0,62772.0,0.00164]
[1728870554712,1.62898363,62773.0,62772.0,0.00164]
[1728870555356,1.51646582,62773.0,62772.0,0.00164]
[1728870555614,1.55637794,62773.0,62772.0,0.00164]
[1728870556244,1.55637794,62773.0,62767.0,0.00164]
[1728870556245,0.37183181,62769.0,62767.0,0.00164]
[1728870556474,0.68352564,62769.0,62767.0,0.00164]
[1728870556719,0.76267363,62769.0,62767.0,0.00164]
[1728870556965,0.90603938,62769.0,62767.0,0.00164]
[1728870557156,1.15603938,62769.0,62767.0,0.00164]
[1728870557368,1.01267363,62769.0,62767.0,0.00164]
[1728870557597,1.05562525,62769.0,62767.0,0.00164]
[1728870557803,1.19899588,62769.0,62767.0,0.00164]
[1728870559173,1.05562525,62769.0,62767.0,0.00164]
[1728870559426,1.19900386,62769.0,62767.0,0.00164]
[1728870560048,1.05562525,62769.0,62767.0,0.00164]
[1728870560275,1.19900499,62769.0,62767.0,0.00164]
[1728870561106,1.05562525,62769.0,62767.0,0.00164]
[1728870561322,1.36039348,62769.0,62767.0,0.00164]
[1728870561744,1.36039288,62769.0,62767.0,0.00164]
[1728870562405,1.36040434,62769.0,62767.0,0.00164]
[1728870562617,1.21699496,62769.0,62767.0,0.00164]
[1728870563075,1.05562525,62769.0,62767.0,0.00164]
[1728870563318,1.05562142,62769.0,62767.0,0.00164]
[1728870565627,1.08058195,62769.0,62767.0,0.00164]
[1728870566302,1.58058195,62769.0,62767.0,0.00164]
[1728870566731,1.56563416,62769.0,62767.0,0.00164]
[1728870567179,1.58058182,62769.0,62767.0,0.00164]
[1728870570605,1.70913205,62769.0,62767.0,0.00164]
[1728870571305,1.69418439,62769.0,62767.0,0.00164]
[1728870571535,1.70913431,62769.0,62767.0,0.00164]
[1728870572402,1.68417378,62769.0,62767.0,0.00164]
[1728870576947,1.70913421,62769.0,62767.0,0.00164]
[1728870578026,1.71113421,62769.0,62767.0,0.00164]
[1728870578922,1.91558632,62769.0,62767.0,0.00164]
[1728870579139,1.9006364,62769.0,62767.0,0.00164]